fUSD/lending_fUSD_20241216
["ID","MTS","AMOUNT","RATE_DAILY","PERIOD"]
[345598914,1734376241859,-500.0,0.00024998,4]
[345598916,1734376241868,-500.0,0.00024998,4]
[345598918,1734376241878,-500.0,0.00024998,4]
[345598920,1734376241893,-310.61120171,0.00024998,4]
[345598922,1734376241902,-500.0,0.00024998,4]
[345598924,1734376241911,-500.0,0.00024998,4]
[345598926,1734376241920,-194.88999999,0.00024998,4]
[345598928,1734376241929,-500.0,0.00024998,4]
[345598930,1734376241939,-500.0,0.00024998,4]
[345598932,1734376241948,-500.0,0.00024998,4]
[345598934,1734376241957,-500.0,0.00024998,4]
[345598936,1734376241966,-1445.69,0.00024998,4]
[345598938,1734376241975,-1445.69,0.00024998,4]
[345598940,1734376241985,-500.0,0.00024998,4]
[345598942,1734376241994,-500.0,0.00024998,4]
[345598944,1734376242004,-500.0,0.00024998,4]
[345598946,1734376242013,-500.0,0.00024998,4]
[345598948,1734376242023,-513.65478904,0.00024998,4]
[345598950,1734376242032,-500.0,0.00024998,4]
[345598952,1734376242041,-500.0,0.00024998,4]
[345598954,1734376242051,-541.42456082,0.00024998,4]
[345598956,1734376242060,-500.0,0.00024998,4]
[345598958,1734376242070,-157.99876,0.00024998,4]
[345598960,1734376242080,-264.3,0.00024998,4]
[345598962,1734376242090,-500.0,0.00024998,4]
[345598963,1734376242099,-500.0,0.00024998,4]
[345598965,1734376242108,-428.93353737,0.00024998,4]
[345598967,1734376242117,-500.0,0.00024998,4]
[345598969,1734376242126,-500.0,0.00024998,4]
[345598971,1734376242144,-496.65,0.00024998,4]
[345598973,1734376242153,-500.0,0.00024998,4]
[345598975,1734376242163,-500.0,0.00024998,4]
[345598977,1734376242172,-500.0,0.00024998,4]
[345598979,1734376242181,-500.0,0.00024998,4]
[345598981,1734376242190,-500.0,0.00024998,4]
[345598983,1734376242200,-318.59299949,0.00024998,4]
[345598985,1734376242209,-100000.0,0.00024999,5]
[345598987,1734376242221,-100000.0,0.00024999,6]
[345598989,1734376242230,-100000.0,0.00024999,2]
[345598991,1734376242239,-100000.0,0.00024999,3]
[345598993,1734376242249,-100000.0,0.00024999,4]
[345598995,1734376242259,-10000.0,0.00024999,2]
[345598997,1734376242268,-300.0,0.00024999,10]
[345599000,1734376242277,-300.0,0.00024999,10]
[345599003,1734376242287,-150.0,0.00024999,30]
[345599005,1734376242296,-29288.07,0.00024999,2]
[345599007,1734376242306,-1000.0,0.00024999,2]
[345599008,1734376242315,-813.39,0.00024999,2]
[345599010,1734376242324,-470.11171535,0.00024999,10]
[345599012,1734376242333,-2000.0,0.00024999,2]
[345599014,1734376242342,-500.0,0.00024999,4]
[345599016,1734376242351,-226.86,0.00024999,4]
[345599018,1734376242360,-500.0,0.00024999,4]
[345599020,1734376242369,-500.0,0.00024999,4]
[345599022,1734376242380,-500.0,0.00024999,4]
[345599024,1734376242395,-500.0,0.00024999,4]
[345599026,1734376242405,-220.99,0.00024999,4]
[345599028,1734376242413,-287.19531095,0.00024999,4]
[345599030,1734376242424,-1445.69,0.00024999,4]
[345599032,1734376242434,-1445.69,0.00024999,4]
[345599034,1734376242444,-1445.69,0.00024999,4]
[345599036,1734376242454,-1445.69,0.00024999,4]
[345599038,1734376242462,-1445.69,0.00024999,4]
[345599040,1734376242471,-1445.69,0.00024999,4]
[345599042,1734376242481,-1445.69,0.00024999,4]
[345599044,1734376242490,-1445.69,0.00024999,4]
[345599046,1734376242500,-1445.69,0.00024999,4]
[345599048,1734376242510,-1445.69,0.00024999,4]
[345599050,1734376242519,-1445.69,0.00024999,4]
[345599052,1734376242527,-1445.69,0.00024999,4]
[345599053,1734376242536,-1445.69,0.00024999,4]
[345599055,1734376242545,-1445.69,0.00024999,4]
[345599057,1734376242554,-1445.69,0.00024999,4]
[345599059,1734376242564,-1445.69,0.00024999,4]
[345599061,1734376242573,-1445.69,0.00024999,4]
[345599063,1734376242583,-1445.69,0.00024999,4]
[345599065,1734376242592,-1445.69,0.00024999,4]
[345599067,1734376242601,-1445.91,0.00024999,4]
[345599069,1734376242610,-521.62040212,0.00024999,4]
[345599071,1734376242620,-1000.0,0.00024999,2]
[345599073,1734376242629,-460.96,0.00024999,4]
[345599075,1734376242643,-500.0,0.00024999,4]
[345599077,1734376242653,-500.0,0.00024999,4]
[345599078,1734376242663,-500.0,0.00024999,4]
[345599080,1734376242673,-500.0,0.00024999,4]
[345599082,1734376242682,-500.0,0.00024999,4]
[345599084,1734376242691,-500.0,0.00024999,4]
[345599086,1734376242700,-500.0,0.00024999,4]
[345599088,1734376242710,-183.82,0.00024999,4]
[345599090,1734376242719,-407.06,0.00024999,4]
[345599092,1734376242729,-500.0,0.00024999,4]
[345599095,1734376242738,-221.58,0.00024999,4]
[345599097,1734376242747,-3909377.90707386,0.00025,4]
[345599098,1734376242757,-4858.40326415,0.00025,2]
[345599099,1734376242767,-69369.76329642,0.00025,2]
[345599100,1734376242776,-250.27,0.00025,2]
[345599101,1734376242785,-30021413.26408387,0.00025,2]
[345599102,1734376242802,-4800.0,0.00025,2]
[345599103,1734376242813,-4087.13897112,0.00025,2]
[345599104,1734376242824,-104837.3258749,0.00025,2]
[345599105,1734376242835,-12343.95405,0.00025,2]
[345599106,1734376242854,-2514.52802035,0.00025,2]
[345599107,1734376242865,-14685.83184529,0.00025,2]
[345599108,1734376242876,-367.9549815,0.00025,2]
[345599110,1734376242901,-14978.6,0.00025,2]
[345599112,1734376242912,-26766.05,0.00025,2]
[345599115,1734376242924,-4055.43180006,0.00025,2]
[345599117,1734376242935,-537.73295835,0.00025,2]
[345599121,1734376242968,-4568.66707023,0.00025,2]
[345599124,1734376242983,-7408.5,0.00025,2]
[345599127,1734376242998,-5268.5988195,0.00025,2]
[345599129,1734376243015,-144212.5303411,0.00025,2]
[345599132,1734376243030,-3780.13630137,0.00025,2]
[345599135,1734376243048,-214.5110559,0.000199,2]
[345599137,1734376243060,-33219.70101846,0.00025,2]
[345599140,1734376243075,-74379.43552759,0.00025,2]
[345599142,1734376243089,-412.51378051,0.00025,2]
[345599145,1734376243104,-11190.27546747,0.00025,2]
[345599147,1734376243119,-29701.00908,0.00025,2]
[345599185,1734376243482,-5335.9646185,0.00025,2]
[345599194,1734376243555,-552.1343745,0.00025,2]
[345599196,1734376243568,-5055.75560761,0.00025,2]
[345599323,1734376245430,-151.18868211,0.00024585,2]
[345599324,1734376245442,-2513.88081789,0.00025,2]
[345599325,1734376245541,-5353.0,0.00025,2]
[345599326,1734376245619,-112931.36308449,0.00025,2]
[345599327,1734376245691,-1940.87,0.00025,2]
[345599332,1734376412910,159.53,0.00010137,2]
[345599334,1734376526555,450.0,0.00013,2]
[345599339,1734377108391,4292.47,0.0001,2]
[345599340,1734377108417,10000.0,0.0001,2]
[345599341,1734377108439,10000.0,0.0001,2]
[345599342,1734377108462,10000.0,0.0001,2]
[345599343,1734377108486,10000.0,0.0001,2]
[345599344,1734377108515,10000.0,0.0001,2]
[345599345,1734377108540,10000.0,0.0001,2]
[345599346,1734377108564,10000.0,0.0001,2]
[345599347,1734377108588,10000.0,0.0001,2]
[345599348,1734377108612,10000.0,0.0001,2]
[345599349,1734377108648,128480.24,0.0001,2]
[345599350,1734377108681,6932518.58360486,0.0001,2]
[345599351,1734377280271,6234.0,0.00013,2]
[345599352,1734377280298,19209.63931998,0.00013,2]
[345599363,1734377331727,-175.42,0.00016712,2]
[345599364,1734377331752,-300.0,0.00019979,2]
[345599365,1734377331775,-8809.57496962,0.0001998,2]
[345599367,1734377331800,-6051.52543352,0.0001998,2]
[345599374,1734377332009,-470.11171535,0.00019999,5]
[345599375,1734377332036,-6223.6198636,0.0002,2]
[345599376,1734377332059,-6500.0,0.0002,2]
[345599377,1734377332085,-297.18335743,0.0002,2]
[345599378,1734377332108,-31072.64492105,0.0002,2]
[345599379,1734377332132,-3818.21257485,0.0002,2]
[345599380,1734377332157,-11725060.84978853,0.0002,2]
[345599398,1734377431686,-300.0,0.00019999,2]
[345599399,1734377431696,-1603.16677801,0.0002,2]
[345599402,1734377431774,-12143.33438871,0.0002,2]
[345599403,1734377431786,-5136.81019278,0.0002,2]
[345599404,1734377431795,-162.18980722,0.0002,2]
[345599405,1734377431805,-1051.7704,0.0002,2]
[345599406,1734377431864,-1291.14597364,0.0002,2]
[345599407,1734377431874,-401.14652608,0.0002,2]
[345599408,1734377431883,-240.68791565,0.0002,2]
[345599409,1734377431892,-500.0,0.00020027,2]
[345599410,1734377431901,-398.29,0.00020114,2]
[345599411,1734377431911,-1000.0,0.00020163,2]
[345599412,1734377431920,-1859.56248483,0.00020228,2]
[345599413,1734377431935,-371.34408648,0.00020228,2]
[345599414,1734377431945,-19678.8214,0.00020228,2]
[345599415,1734377431957,-1372.90202869,0.00020228,2]
[345599416,1734377431966,-3914.59797131,0.00020409,2]
[345599417,1734377431986,-9657.06860798,0.00020409,2]
[345599418,1734377432352,-1059.0,0.00020409,2]
[345599419,1734377432364,-326.5542579,0.00020409,2]
[345599420,1734377432375,-412.85849202,0.00020409,2]
[345599421,1734377432387,-3154.42683295,0.00020409,2]
[345599943,1734377437657,-5375.49383784,0.00020409,2]
[345599945,1734377437666,-250.0,0.00020466,2]
[345599947,1734377437676,-748.49,0.00020613,2]
[345599949,1734377437688,-500.0,0.00020767,2]
[345599951,1734377437698,-165.46,0.00020835,2]
[345599953,1734377437708,-150.0,0.00020842,2]
[345599955,1734377437717,-1818.18,0.00020859,2]
[345599957,1734377437726,-500.0,0.00020959,2]
[345599959,1734377437736,-500.0,0.00020973,2]
[345599961,1734377437745,-292.71861648,0.00020973,2]
[345599963,1734377437755,-10000.0,0.00021,2]
[345599965,1734377437764,-13652.24288599,0.00021,2]
[345599967,1734377437773,-119543.13400541,0.00021,2]
[345599969,1734377437785,-8186.41596334,0.00021,2]
[345599971,1734377437796,-7699.1274783,0.00021,2]
[345599974,1734377437811,-212930.2558423,0.00021,2]
[345599978,1734377437843,-1367.5495625,0.00021,2]
[345599989,1734377437943,-425.99999,0.00021,2]
[345600091,1734377438930,-2348977.49961382,0.00021,2]
[345600093,1734377438942,-1141.12032167,0.00021,2]
[345600095,1734377438952,-188.29137836,0.00021,2]
[345600097,1734377438963,-500.0,0.00021164,2]
[345600099,1734377438972,-739.98,0.00021164,2]
[345600100,1734377438981,-736.58,0.00021165,2]
[345600103,1734377438991,-739.95,0.00021165,2]
[345600105,1734377439001,-747.95,0.00021165,2]
[345600107,1734377439011,-742.45,0.00021166,2]
[345600108,1734377439020,-748.84,0.00021168,2]
[345600110,1734377439030,-754.3,0.00021171,2]
[345600113,1734377439039,-757.39,0.00021175,2]
[345600115,1734377439049,-621.31316185,0.00021181,2]
[345600117,1734377439058,-755.63,0.00021183,2]
[345600119,1734377439068,-735.94,0.00021195,2]
[345600121,1734377439077,-2000.0,0.00021199,2]
[345600123,1734377439086,-1238.0675,0.00021199,2]
[345600124,1734377439096,-748.94,0.00021216,2]
[345600126,1734377439105,-764.03,0.0002125,2]
[345600129,1734377439115,-750.11,0.00021307,2]
[345600131,1734377439125,-763.08,0.00021401,2]
[345600133,1734377439134,-204.94949826,0.00021521,2]
[345600134,1734377439143,-761.31,0.00021556,2]
[345600136,1734377439153,-514.69,0.00021773,2]
[345600138,1734377439162,-420.0,0.00021777,2]
[345600140,1734377439171,-250.0,0.00021793,2]
[345600142,1734377439181,-1500.0,0.00021795,2]
[345600144,1734377439192,-748.7,0.00021818,2]
[345600146,1734377439202,-395.94714062,0.00021873,2]
[345600149,1734377439212,-417363.53641985,0.0002189,2]
[345600150,1734377439221,-150.98772517,0.000219,2]
[345600153,1734377439231,-150.98772517,0.000219,2]
[345600154,1734377439240,-150.98772517,0.000219,2]
[345600157,1734377439250,-150.98772517,0.000219,2]
[345600158,1734377439260,-150.98772517,0.000219,2]
[345600161,1734377439270,-150.98772517,0.000219,2]
[345600163,1734377439280,-150.98772517,0.000219,2]
[345600164,1734377439290,-150.98772517,0.000219,2]
[345600166,1734377439299,-150.98772517,0.000219,2]
[345600167,1734377439309,-150.98772517,0.000219,2]
[345600168,1734377439318,-150.98772517,0.000219,2]
[345600169,1734377439327,-150.98772517,0.00021908,2]
[345600170,1734377439336,-150.98772517,0.00021992,2]
[345600171,1734377439345,-5078.03566463,0.00022,3]
[345600172,1734377439354,-150.98772517,0.00022076,2]
[345600173,1734377439363,-150.98772517,0.0002216,2]
[345600174,1734377439372,-738.77,0.0002226,2]
[345600175,1734377439381,-500.0,0.00022301,2]
[345600176,1734377439390,-613.0,0.00022356,2]
[345600177,1734377439399,-153.48,0.0002243,2]
[345600178,1734377439407,-1626.37,0.00022449,2]
[345600179,1734377439416,-1000.0,0.00022476,2]
[345600180,1734377439426,-150.0,0.00022488,4]
[345600181,1734377439439,-352.29892281,0.00022499,2]
[345600182,1734377439448,-2000.0,0.00022499,2]
[345600184,1734377439457,-514.69,0.00022579,2]
[345600186,1734377439467,-2386.99,0.00022592,2]
[345600188,1734377439476,-200.0,0.00022599,2]
[345600190,1734377439486,-398.29,0.00022628,2]
[345600193,1734377439495,-250.0,0.0002263,2]
[345600195,1734377439505,-752.29,0.00022647,2]
[345600198,1734377439515,-200.0,0.00022668,2]
[345600200,1734377439525,-1000.0,0.00022683,2]
[345600202,1734377439534,-165.57,0.00022714,2]
[345600204,1734377439543,-151.02,0.00022906,30]
[345600206,1734377439553,-1818.18,0.00023123,2]
[345600208,1734377439568,-801.71,0.00023318,2]
[345600210,1734377439577,-500.0,0.00023356,2]
[345600212,1734377439586,-514.69,0.00023384,2]
[345600214,1734377439596,-500.0,0.00023415,7]
[345600215,1734377439607,-153.48,0.00023536,2]
[345600217,1734377439617,-500.0,0.00023689,7]
[345600219,1734377439626,-153.0,0.00023698,2]
[345600221,1734377439636,-153.0,0.00023698,2]
[345600223,1734377439647,-587.0,0.00023712,2]
[345600226,1734377439657,-512.873,0.0002375,2]
[345600227,1734377439667,-1816.0,0.000238,2]
[345600229,1734377439676,-153.64225273,0.00023836,2]
[345600231,1734377439689,-753.29,0.000239,2]
[345600233,1734377439699,-500.0,0.00023962,7]
[345600235,1734377439716,-659.67850921,0.00024,30]
[345600237,1734377439726,-87040.42397679,0.00024,5]
[345600239,1734377439735,-106122.82701746,0.00024,2]
[345600241,1734377439744,-218.12514043,0.00024,2]
[345600243,1734377439754,-1847.449,0.00024088,5]
[345600245,1734377439763,-250.0,0.00024105,2]
[345600247,1734377439773,-153.64225273,0.00024137,2]
[345600249,1734377439782,-514.69,0.0002419,2]
[345600251,1734377439791,-500.0,0.00024235,7]
[345600253,1734377439801,-165.46,0.00024274,2]
[345600255,1734377439810,-3317.78616485,0.000243,14]
[345600257,1734377439820,-164.2,0.00024303,2]
[345600259,1734377439830,-301.07,0.00024411,2]
[345600261,1734377439839,-151.77,0.00024411,2]
[345600263,1734377439849,-151.08,0.00024411,2]
[345600265,1734377439859,-150.49,0.00024411,2]
[345600267,1734377439868,-153.64225273,0.00024438,2]
[345600269,1734377439878,-600.486052,0.00024498,2]
[345600271,1734377439888,-23940.72356685,0.000245,2]
[345600273,1734377439897,-500.0,0.00024508,7]
[345600275,1734377439907,-1538.94,0.00024575,2]
[345600277,1734377439917,-500.0,0.00024603,2]
[345600279,1734377439927,-165.57,0.00024607,2]
[345600281,1734377439940,-153.48,0.00024643,2]
[345600283,1734377439950,-2823.12,0.00024657,4]
[345600285,1734377439960,-500.0,0.00024657,4]
[345600287,1734377439970,-1620.84,0.00024657,4]
[345600289,1734377439979,-500.0,0.00024657,4]
[345600291,1734377439989,-2554.78,0.00024657,4]
[345600293,1734377439998,-500.0,0.00024657,4]
[345600295,1734377440007,-9132.09,0.00024657,4]
[345600297,1734377440017,-500.0,0.00024657,4]
[345600299,1734377440026,-174.18,0.00024657,4]
[345600301,1734377440036,-341.84,0.00024657,4]
[345600303,1734377440046,-500.0,0.00024657,4]
[345600305,1734377440055,-694.7,0.00024657,4]
[345600307,1734377440065,-500.0,0.00024657,4]
[345600309,1734377440074,-638.87,0.00024657,4]
[345600311,1734377440084,-4422.73,0.00024657,4]
[345600313,1734377440094,-500.0,0.00024657,4]
[345600315,1734377440103,-500.0,0.00024657,4]
[345600317,1734377440112,-500.0,0.00024657,4]
[345600319,1734377440122,-351.04559832,0.00024657,4]
[345600321,1734377440131,-500.0,0.00024657,4]
[345600323,1734377440140,-500.0,0.00024657,4]
[345600325,1734377440149,-500.0,0.00024657,4]
[345600326,1734377440158,-428.93353737,0.00024657,4]
[345600328,1734377440168,-500.0,0.00024657,4]
[345600330,1734377440177,-520.80975774,0.00024657,4]
[345600332,1734377440190,-500.0,0.00024657,4]
[345600334,1734377440200,-500.0,0.0002467,4]
[345600336,1734377440210,-500.0,0.0002467,4]
[345600338,1734377440219,-500.0,0.0002467,2]
[345600341,1734377440228,-500.0,0.0002467,4]
[345600344,1734377440238,-500.0,0.0002467,4]
[345600346,1734377440247,-2601.0,0.000247,2]
[345600348,1734377440257,-237.33,0.0002475,2]
[345600350,1734377440266,-3000.0,0.0002475,2]
[345600352,1734377440275,-800.35,0.00024781,7]
[345600354,1734377440286,-176.50499016,0.00024789,2]
[345600356,1734377440295,-3855.5314,0.000248,2]
[345600358,1734377440304,-5000.0,0.000248,2]
[345600360,1734377440313,-620.88718439,0.00024831,10]
[345600362,1734377440322,-620.88718439,0.00024853,10]
[345600364,1734377440332,-620.88718439,0.00024866,10]
[345600366,1734377440341,-620.88718439,0.0002487,10]
[345600368,1734377440350,-500.0,0.00024884,4]
[345600370,1734377440360,-402.2671711,0.00024884,4]
[345600372,1734377440370,-2823.12,0.00024884,4]
[345600374,1734377440379,-500.0,0.00024884,4]
[345600376,1734377440389,-500.0,0.00024884,4]
[345600378,1734377440398,-2823.12,0.00024884,4]
[345600380,1734377440407,-1620.84,0.00024884,4]
[345600382,1734377440417,-1620.84,0.00024884,4]
[345600384,1734377440426,-874.91,0.00024884,4]
[345600386,1734377440438,-874.91,0.00024884,4]
[345600388,1734377440447,-500.0,0.00024884,4]
[345600390,1734377440457,-500.0,0.00024884,4]
[345600392,1734377440467,-2554.78,0.00024884,4]
[345600394,1734377440476,-2554.78,0.00024884,4]
[345600396,1734377440486,-168.05,0.00024884,4]
[345600398,1734377440495,-500.0,0.00024884,4]
[345600400,1734377440505,-500.0,0.00024884,4]
[345600402,1734377440514,-9132.09,0.00024884,4]
[345600404,1734377440523,-9132.09,0.00024884,4]
[345600406,1734377440533,-500.0,0.00024884,4]
[345600408,1734377440542,-311.16,0.00024884,4]
[345600410,1734377440551,-1249.73,0.00024884,4]
[345600412,1734377440563,-1249.73,0.00024884,4]
[345600414,1734377440572,-500.0,0.00024884,4]
[345600416,1734377440582,-500.0,0.00024884,4]
[345600418,1734377440591,-500.0,0.00024884,4]
[345600420,1734377440603,-500.0,0.00024884,4]
[345600422,1734377440612,-694.7,0.00024884,4]
[345600424,1734377440621,-694.7,0.00024884,4]
[345600426,1734377440630,-500.0,0.00024884,4]
[345600428,1734377440640,-264.3,0.00024884,4]
[345600430,1734377440650,-1075.45,0.00024884,4]
[345600431,1734377440659,-1075.45,0.00024884,4]
[345600433,1734377440668,-500.0,0.00024884,4]
[345600435,1734377440678,-500.0,0.00024884,4]
[345600437,1734377440690,-500.0,0.00024884,4]
[345600440,1734377440699,-638.87,0.00024884,4]
[345600441,1734377440708,-638.87,0.00024884,4]
[345600444,1734377440718,-500.0,0.00024884,4]
[345600445,1734377440728,-4422.73,0.00024884,4]
[345600447,1734377440738,-4422.73,0.00024884,4]
[345600449,1734377440747,-500.0,0.00024884,4]
[345600451,1734377440757,-500.0,0.00024884,4]
[345600453,1734377440766,-500.0,0.00024884,4]
[345600455,1734377440775,-500.0,0.00024884,4]
[345600457,1734377440785,-2556.56,0.00024884,4]
[345600459,1734377440794,-2556.56,0.00024884,4]
[345600461,1734377440805,-500.0,0.00024884,4]
[345600463,1734377440814,-500.0,0.00024884,4]
[345600465,1734377440824,-401000.0,0.00024885,7]
[345600467,1734377440833,-620.88718439,0.00024891,10]
[345600469,1734377440842,-620.88718439,0.00024893,10]
[345600471,1734377440851,-500.0,0.00024899,4]
[345600473,1734377440861,-362.042706,0.00024899,4]
[345600475,1734377440870,-500.0,0.00024899,4]
[345600477,1734377440879,-500.0,0.00024899,4]
[345600479,1734377440889,-500.0,0.00024899,4]
[345600481,1734377440899,-442.59657158,0.00024899,4]
[345600483,1734377440908,-500.0,0.00024899,4]
[345600485,1734377440918,-500.0,0.00024899,4]
[345600487,1734377440927,-500.0,0.00024899,4]
[345600489,1734377440939,-313.47813231,0.00024899,4]
[345600491,1734377440948,-500.0,0.00024899,4]
[345600493,1734377440958,-500.0,0.00024899,4]
[345600495,1734377440969,-500.0,0.00024899,4]
[345600497,1734377440978,-500.0,0.00024899,4]
[345600499,1734377440988,-500.0,0.00024899,4]
[345600501,1734377440997,-500.0,0.00024899,4]
[345600503,1734377441008,-500.0,0.00024899,4]
[345600505,1734377441018,-562.03,0.00024899,4]
[345600507,1734377441027,-4000.413038,0.00024899,2]
[345600509,1734377441037,-500.0,0.00024899,4]
[345600511,1734377441046,-480.71,0.00024899,4]
[345600513,1734377441057,-500.0,0.00024899,4]
[345600515,1734377441067,-500.0,0.00024899,4]
[345600517,1734377441076,-500.0,0.00024899,4]
[345600519,1734377441086,-500.0,0.00024899,4]
[345600521,1734377441096,-500.0,0.00024899,4]
[345600523,1734377441106,-500.0,0.00024899,4]
[345600525,1734377441116,-500.0,0.00024899,4]
[345600527,1734377441125,-500.0,0.00024899,4]
[345600529,1734377441135,-500.0,0.00024899,4]
[345600531,1734377441144,-500.0,0.00024899,4]
[345600533,1734377441154,-500.0,0.00024899,2]
[345600535,1734377441163,-448.45693887,0.00024899,4]
[345600537,1734377441172,-10000.0,0.000249,2]
[345600539,1734377441182,-15571.05037436,0.000249,2]
[345600541,1734377441194,-147816.19013173,0.000249,2]
[345600543,1734377441203,-164.26,0.000249,31]
[345600545,1734377441212,-164.26,0.000249,31]
[345600547,1734377441221,-164.26,0.000249,31]
[345600549,1734377441231,-164.26,0.000249,31]
[345600551,1734377441241,-164.26,0.000249,31]
[345600553,1734377441251,-164.26,0.000249,31]
[345600555,1734377441260,-164.26,0.000249,31]
[345600557,1734377441269,-164.26,0.000249,31]
[345600559,1734377441278,-164.26,0.000249,31]
[345600561,1734377441288,-164.26,0.000249,31]
[345600563,1734377441298,-164.26,0.000249,31]
[345600565,1734377441308,-164.26,0.000249,31]
[345600567,1734377441317,-164.26,0.000249,31]
[345600569,1734377441326,-164.26,0.000249,31]
[345600571,1734377441336,-164.26,0.000249,31]
[345600573,1734377441345,-164.26,0.000249,31]
[345600574,1734377441354,-25569.79522522,0.0002496,120]
[345600576,1734377441363,-39779.58719605,0.0002496,120]
[345600578,1734377441373,-1500.0,0.00024962,2]
[345600580,1734377441382,-314.88436809,0.00024973,2]
[345600583,1734377441392,-31926.12804953,0.00024973,3]
[345600585,1734377441401,-514.69,0.00024996,2]
[345600586,1734377441411,-500.0,0.00024997,4]
[345600588,1734377441420,-500.0,0.00024997,4]
[345600590,1734377441430,-173.40676984,0.00024998,4]
[345600592,1734377441441,-500.0,0.00024998,4]
[345600595,1734377441451,-2823.12,0.00024998,4]
[345600597,1734377441460,-500.0,0.00024998,4]
[345600599,1734377441470,-2823.12,0.00024998,4]
[345600600,1734377441480,-2823.12,0.00024998,4]
[345600603,1734377441490,-500.0,0.00024998,4]
[345600604,1734377441499,-2823.12,0.00024998,4]
[345600606,1734377441508,-500.0,0.00024998,4]
[345600608,1734377441517,-2823.12,0.00024998,4]
[345600610,1734377441526,-500.0,0.00024998,4]
[345600612,1734377441536,-2823.12,0.00024998,4]
[345600627,1734377441546,-580.26,0.00024998,4]
[345600629,1734377441684,-2823.12,0.00024998,4]
[345600631,1734377441694,-2823.12,0.00024998,4]
[345600633,1734377441704,-2823.12,0.00024998,4]
[345600635,1734377441713,-2823.12,0.00024998,4]
[345600637,1734377441723,-2823.12,0.00024998,4]
[345600640,1734377441732,-2823.12,0.00024998,4]
[345600642,1734377441742,-2823.12,0.00024998,4]
[345600644,1734377441751,-1620.84,0.00024998,4]
[345600645,1734377441761,-1620.84,0.00024998,4]
[345600647,1734377441771,-1620.84,0.00024998,4]
[345600650,1734377441780,-1620.84,0.00024998,4]
[345600652,1734377441791,-1620.84,0.00024998,4]
[345600654,1734377441800,-1620.84,0.00024998,4]
[345600655,1734377441809,-1620.84,0.00024998,4]
[345600658,1734377441819,-1620.84,0.00024998,4]
[345600660,1734377441829,-1620.84,0.00024998,4]
[345600661,1734377441838,-1620.84,0.00024998,4]
[345600664,1734377441848,-1620.84,0.00024998,4]
[345600665,1734377441858,-1620.84,0.00024998,4]
[345600668,1734377441867,-1620.84,0.00024998,4]
[345600670,1734377441877,-874.91,0.00024998,4]
[345600671,1734377441886,-874.91,0.00024998,4]
[345600673,1734377441897,-874.91,0.00024998,4]
[345600675,1734377441907,-874.91,0.00024998,4]
[345600677,1734377441916,-874.91,0.00024998,4]
[345600679,1734377441926,-874.91,0.00024998,4]
[345600682,1734377441936,-874.91,0.00024998,4]
[345600684,1734377441945,-874.91,0.00024998,4]
[345600685,1734377441954,-874.91,0.00024998,4]
[345600687,1734377441963,-500.0,0.00024998,4]
[345600689,1734377441973,-500.0,0.00024998,4]
[345600692,1734377441982,-500.0,0.00024998,4]
[345600693,1734377441991,-500.0,0.00024998,4]
[345600695,1734377442001,-2554.78,0.00024998,4]
[345600698,1734377442010,-500.0,0.00024998,4]